Workbook

Sheet Лист1
B2: После подтяжки отсортировать по номеру всп!!! | K2: переформат | L2: да
B3: Проверку кол-ва КМ делаем из: 1).1.25; 2).произвольный отчет; 3).рейтинги + обратные проверки | K3: 1-ый месяц | L3: нет
R5: с 25 по 24 число, согласованный отчет
A6: Рейтинг, портал | B6: Рейтинг, портал | C6: КЗ, обработка | D6: КЗ, обработка | E6: 1.25 | F6: КЗ | G6: КЗ, обработка | I6: Конвертер | J6: 1.25 | K6: Справочник, Света Киселева | L6: Запрос | M6: Справочник, портал | N6: Табель | O6: Отчет2 | P6: Отчет управляющей кампании | Q6: 1.25 | R6: реестр | S6: формула | T6: формула | U6: Ручные данные+проверка ИБСО | V6: Ручные данные+проверка ОПИКИс | W6: норматив | X6: Саша Т. | Y6: норматив
B7: 1C | C7: 1Е | D7: 1F | G7: 2d6 | I7: 2d5 | J7: 2d4 | M7: 2d9
A8: Код КМ | B8: ФИО | C8: Табельный номер | D8: Должностной оклад | E8: Дата создания подразделения | F8: Фактически отработанное время | G8: ВСП | H8: ВСП справ НСИ | I8: Управление | J8: Адрес | K8: Переформат/1 месяц в должности | L8: ПИФ (да/нет) | M8: Нормативный коэффициент премирования | N8: Обучение | O8: Итого прирост | P8: ПИФ | Q8: Тарифный план | R8: ИСЖ/НСЖ | S8: месяцев действия точки МВС | T8: Зона | U8: Потреб.кредиты | V8: Одобренные заявки на ЖК/ПК под залог недвижимости | W8: Кнорм | X8: ДСЖ | Y8: Стоимость 1 УП МП
A9: 4290420026401 | B9: Павлинова Кристина Евгеньевна | C9: 4201062076 | D9: 23500 | E9: =VLOOKUP([1]!Таблица1[[#This Row],[ФИО]],'[1]1.25'!A:I,5,FALSE) -> 2014-07-01 | F9: 120 | G9: 9042/0026 | H9: =CONCATENATE("042_9042_0",Z9) -> 042_9042_026 | I9: 1).Городское Управление | J9: =VLOOKUP([1]!Таблица1[[#This Row],[ФИО]],'[1]1.25'!A:I,4,FALSE) -> г н новгород пр ленина д29 | L9: да | M9: =[1]!Таблица1[[#This Row],[Кнорм]] -> 1.5 | N9: 44 | O9: =VLOOKUP((VALUE([1]!Таблица1[[#This Row],[Код КМ]])),[1]отчет2!I:J,2,FALSE)/1000000 -> -4.465856 | P9: =IFERROR(VLOOKUP([1]!Таблица1[[#This Row],[ФИО]],[1]ПИФ!L:N,3,FALSE),0)/1000 -> 0 | Q9: =IFERROR(VLOOKUP(VALUE([1]!Таблица1[[#This Row],[Код КМ]]),[1]ТП!D:F,3,FALSE),0) -> 0 | R9: =IFERROR(VLOOKUP([1]!Таблица1[[#This Row],[ФИО]],[1]исж!D:E,2,FALSE),0)/1000 -> 0 | S9: =IF(ROUNDUP((TODAY()-[1]!Таблица1[Дата создания подразделения])/30,0)>5,"6 и более",ROUNDUP((TODAY()-[1]!Таблица1[Дата создания подразделения])/30,0)) ->  | T9: =IF([1]!Таблица1[[#This Row],[Управление]]="1).Городское Управление",1,2) -> 1 | W9: =VLOOKUP([1]!Таблица1[[#This Row],[ВСП]],[1]Кнорм!A:M,13,FALSE) -> 1.5 | X9: =IFERROR(VLOOKUP([1]!Таблица1[[#This Row],[ФИО]],[1]дсж!E:G,3,FALSE),0) -> 0 | Y9: =VLOOKUP([1]!Таблица1[[#This Row],[ВСП]],[1]Кнорм!A:H,8,FALSE) -> 1 | Z9: =VALUE(RIGHT([1]!Таблица1[[#This Row],[ВСП]],4)) -> 26 | AA9: 74 | AB9: =[1]!Таблица1[[#This Row],[ПИФ]] -> 0 | AC9: =[1]!Таблица1[[#This Row],[ФИО]]&[1]!Таблица1[[#This Row],[ВСП]] -> Павлинова Кристина Евгеньевна9042/0026 | AF9: =CONCATENATE(LEFT("42000000",10-LEN([1]!Таблица1[[#This Row],[Табельный номер]])),[1]!Таблица1[[#This Row],[Табельный номер]]) -> 4201062076
A10: 4290420026402 | B10: Солдатова Инна Сергеевна | C10: 4200320073 | D10: 28000 | E10: =VLOOKUP([1]!Таблица1[[#This Row],[ФИО]],'[1]1.25'!A:I,5,FALSE) -> 2013-07-01 | F10: 40 | G10: 9042/0026 | H10: 042_9042_026 | I10: 1).Городское Управление | J10: =VLOOKUP([1]!Таблица1[[#This Row],[ФИО]],'[1]1.25'!A:I,4,FALSE) -> Нижний Новгород ул.Ленина 29 | L10: да | M10: =[1]!Таблица1[[#This Row],[Кнорм]] -> 1.5 | N10: =4 -> 4 | O10: =VLOOKUP((VALUE([1]!Таблица1[[#This Row],[Код КМ]])),[1]отчет2!I:J,2,FALSE)/1000000 -> -4.892191 | P10: =IFERROR(VLOOKUP([1]!Таблица1[[#This Row],[ФИО]],[1]ПИФ!L:N,3,FALSE),0)/1000 -> 0 | Q10: =IFERROR(VLOOKUP(VALUE([1]!Таблица1[[#This Row],[Код КМ]]),[1]ТП!D:F,3,FALSE),0) -> 2 | R10: =IFERROR(VLOOKUP([1]!Таблица1[[#This Row],[ФИО]],[1]исж!D:E,2,FALSE),0)/1000 -> 0 | S10: =IF(ROUNDUP((TODAY()-[1]!Таблица1[Дата создания подразделения])/30,0)>5,"6 и более",ROUNDUP((TODAY()-[1]!Таблица1[Дата создания подразделения])/30,0)) ->  | T10: =IF([1]!Таблица1[[#This Row],[Управление]]="1).Городское Управление",1,2) -> 1 | W10: =VLOOKUP([1]!Таблица1[[#This Row],[ВСП]],[1]Кнорм!A:M,13,FALSE) -> 1.5 | X10: =IFERROR(VLOOKUP([1]!Таблица1[[#This Row],[ФИО]],[1]дсж!E:G,3,FALSE),0) -> 0 | Y10: =VLOOKUP([1]!Таблица1[[#This Row],[ВСП]],[1]Кнорм!A:H,8,FALSE) -> 1 | Z10: =VALUE(RIGHT([1]!Таблица1[[#This Row],[ВСП]],4)) -> 26 | AA10: 130 | AB10: =[1]!Таблица1[[#This Row],[ПИФ]] -> 0 | AC10: =[1]!Таблица1[[#This Row],[ФИО]]&[1]!Таблица1[[#This Row],[ВСП]] -> Солдатова Инна Сергеевна9042/0026 | AF10: =CONCATENATE(LEFT("42000000",10-LEN([1]!Таблица1[[#This Row],[Табельный номер]])),[1]!Таблица1[[#This Row],[Табельный номер]]) -> 4200320073
A11: 4290420029402 | B11: Маркина Евгения Владимировна | C11: 4200821605 | D11: 24000 | E11: =VLOOKUP([1]!Таблица1[[#This Row],[ФИО]],'[1]1.25'!A:I,5,FALSE) -> 2013-12-31 | F11: 120 | G11: 9042/0029 | H11: 042_9042_029 | I11: 1).Городское Управление | J11: =VLOOKUP([1]!Таблица1[[#This Row],[ФИО]],'[1]1.25'!A:I,4,FALSE) -> Нижний Новгород, ул. Плотникова, 5 | L11: да | M11: =[1]!Таблица1[[#This Row],[Кнорм]] -> 1.5 | N11: 44 | O11: =VLOOKUP((VALUE([1]!Таблица1[[#This Row],[Код КМ]])),[1]отчет2!I:J,2,FALSE)/1000000 -> 7.336761 | P11: =IFERROR(VLOOKUP([1]!Таблица1[[#This Row],[ФИО]],[1]ПИФ!L:N,3,FALSE),0)/1000 -> 200 | Q11: =IFERROR(VLOOKUP(VALUE([1]!Таблица1[[#This Row],[Код КМ]]),[1]ТП!D:F,3,FALSE),0) -> 0 | R11: =IFERROR(VLOOKUP([1]!Таблица1[[#This Row],[ФИО]],[1]исж!D:E,2,FALSE),0)/1000 -> 0 | S11: =IF(ROUNDUP((TODAY()-[1]!Таблица1[Дата создания подразделения])/30,0)>5,"6 и более",ROUNDUP((TODAY()-[1]!Таблица1[Дата создания подразделения])/30,0)) ->  | T11: =IF([1]!Таблица1[[#This Row],[Управление]]="1).Городское Управление",1,2) -> 1 | W11: =VLOOKUP([1]!Таблица1[[#This Row],[ВСП]],[1]Кнорм!A:M,13,FALSE) -> 1.5 | X11: =IFERROR(VLOOKUP([1]!Таблица1[[#This Row],[ФИО]],[1]дсж!E:G,3,FALSE),0) -> 0 | Y11: =VLOOKUP([1]!Таблица1[[#This Row],[ВСП]],[1]Кнорм!A:H,8,FALSE) -> 1 | Z11: =VALUE(RIGHT([1]!Таблица1[[#This Row],[ВСП]],4)) -> 29 | AA11: 0 | AB11: =[1]!Таблица1[[#This Row],[ПИФ]] -> 200 | AC11: =[1]!Таблица1[[#This Row],[ФИО]]&[1]!Таблица1[[#This Row],[ВСП]] -> Маркина Евгения Владимировна9042/0029 | AF11: =CONCATENATE(LEFT("42000000",10-LEN([1]!Таблица1[[#This Row],[Табельный номер]])),[1]!Таблица1[[#This Row],[Табельный номер]]) -> 4200821605
A12: 4290420030401 | B12: Кочнева Елена Вячеславовна | C12: 4201094591 | D12: 23000 | E12: =VLOOKUP([1]!Таблица1[[#This Row],[ФИО]],'[1]1.25'!A:I,5,FALSE) -> 2011-07-01 | F12: 120 | G12: 9042/0030 | H12: 042_9042_030 | I12: 1).Городское Управление | J12: =VLOOKUP([1]!Таблица1[[#This Row],[ФИО]],'[1]1.25'!A:I,4,FALSE) -> Н.Новгород, пр.Ленина 53 | L12: да | M12: =[1]!Таблица1[[#This Row],[Кнорм]] -> 1.5 | N12: 12 | O12: =VLOOKUP((VALUE([1]!Таблица1[[#This Row],[Код КМ]])),[1]отчет2!I:J,2,FALSE)/1000000 -> 8.133271 | P12: =IFERROR(VLOOKUP([1]!Таблица1[[#This Row],[ФИО]],[1]ПИФ!L:N,3,FALSE),0)/1000 -> 0 | Q12: =IFERROR(VLOOKUP(VALUE([1]!Таблица1[[#This Row],[Код КМ]]),[1]ТП!D:F,3,FALSE),0) -> 0 | R12: =IFERROR(VLOOKUP([1]!Таблица1[[#This Row],[ФИО]],[1]исж!D:E,2,FALSE),0)/1000 -> 0 | S12: =IF(ROUNDUP((TODAY()-[1]!Таблица1[Дата создания подразделения])/30,0)>5,"6 и более",ROUNDUP((TODAY()-[1]!Таблица1[Дата создания подразделения])/30,0)) ->  | T12: =IF([1]!Таблица1[[#This Row],[Управление]]="1).Городское Управление",1,2) -> 1 | W12: =VLOOKUP([1]!Таблица1[[#This Row],[ВСП]],[1]Кнорм!A:M,13,FALSE) -> 1.5 | X12: =IFERROR(VLOOKUP([1]!Таблица1[[#This Row],[ФИО]],[1]дсж!E:G,3,FALSE),0) -> 0 | Y12: =VLOOKUP([1]!Таблица1[[#This Row],[ВСП]],[1]Кнорм!A:H,8,FALSE) -> 1 | Z12: =VALUE(RIGHT([1]!Таблица1[[#This Row],[ВСП]],4)) -> 30 | AA12: 0 | AB12: =[1]!Таблица1[[#This Row],[ПИФ]] -> 0 | AC12: =[1]!Таблица1[[#This Row],[ФИО]]&[1]!Таблица1[[#This Row],[ВСП]] -> Кочнева Елена Вячеславовна9042/0030 | AF12: =CONCATENATE(LEFT("42000000",10-LEN([1]!Таблица1[[#This Row],[Табельный номер]])),[1]!Таблица1[[#This Row],[Табельный номер]]) -> 4201094591
A13: 4290420030402 | B13: Соломенова Анастасия Геннадьевна | C13: 4201081379 | D13: 26000 | E13: =VLOOKUP([1]!Таблица1[[#This Row],[ФИО]],'[1]1.25'!A:I,5,FALSE) -> 2011-07-01 | F13: 72 | G13: 9042/0030 | H13: 042_9042_030 | I13: 1).Городское Управление | J13: =VLOOKUP([1]!Таблица1[[#This Row],[ФИО]],'[1]1.25'!A:I,4,FALSE) -> Н.Новгород, пр.Ленина 53 | L13: да | M13: =[1]!Таблица1[[#This Row],[Кнорм]] -> 1.5 | N13: 36 | O13: =VLOOKUP((VALUE([1]!Таблица1[[#This Row],[Код КМ]])),[1]отчет2!I:J,2,FALSE)/1000000 -> 0.6092 | P13: =IFERROR(VLOOKUP([1]!Таблица1[[#This Row],[ФИО]],[1]ПИФ!L:N,3,FALSE),0)/1000 -> 0 | Q13: =IFERROR(VLOOKUP(VALUE([1]!Таблица1[[#This Row],[Код КМ]]),[1]ТП!D:F,3,FALSE),0) -> 3 | R13: =IFERROR(VLOOKUP([1]!Таблица1[[#This Row],[ФИО]],[1]исж!D:E,2,FALSE),0)/1000 -> 0 | S13: =IF(ROUNDUP((TODAY()-[1]!Таблица1[Дата создания подразделения])/30,0)>5,"6 и более",ROUNDUP((TODAY()-[1]!Таблица1[Дата создания подразделения])/30,0)) ->  | T13: =IF([1]!Таблица1[[#This Row],[Управление]]="1).Городское Управление",1,2) -> 1 | W13: =VLOOKUP([1]!Таблица1[[#This Row],[ВСП]],[1]Кнорм!A:M,13,FALSE) -> 1.5 | X13: =IFERROR(VLOOKUP([1]!Таблица1[[#This Row],[ФИО]],[1]дсж!E:G,3,FALSE),0) -> 0 | Y13: =VLOOKUP([1]!Таблица1[[#This Row],[ВСП]],[1]Кнорм!A:H,8,FALSE) -> 1 | Z13: =VALUE(RIGHT([1]!Таблица1[[#This Row],[ВСП]],4)) -> 30 | AA13: 0 | AB13: =[1]!Таблица1[[#This Row],[ПИФ]] -> 0 | AC13: =[1]!Таблица1[[#This Row],[ФИО]]&[1]!Таблица1[[#This Row],[ВСП]] -> Соломенова Анастасия Геннадьевна9042/0030 | AF13: =CONCATENATE(LEFT("42000000",10-LEN([1]!Таблица1[[#This Row],[Табельный номер]])),[1]!Таблица1[[#This Row],[Табельный номер]]) -> 4201081379
A14: 4290420031401 | B14: Тактаева Елена Сергеевна | C14: 4200508655 | D14: 28000 | E14: =VLOOKUP([1]!Таблица1[[#This Row],[ФИО]],'[1]1.25'!A:I,5,FALSE) -> 2013-07-01 | F14: 120 | G14: 9042/0031 | H14: 042_9042_031 | I14: 1).Городское Управление | J14: =VLOOKUP([1]!Таблица1[[#This Row],[ФИО]],'[1]1.25'!A:I,4,FALSE) -> г.Нижний Новгород, ул.Веденяпина,д.21 | L14: да | M14: =[1]!Таблица1[[#This Row],[Кнорм]] -> 1.5 | N14: =4 -> 4 | O14: =VLOOKUP((VALUE([1]!Таблица1[[#This Row],[Код КМ]])),[1]отчет2!I:J,2,FALSE)/1000000 -> 18.145563 | P14: =IFERROR(VLOOKUP([1]!Таблица1[[#This Row],[ФИО]],[1]ПИФ!L:N,3,FALSE),0)/1000 -> 0 | Q14: =IFERROR(VLOOKUP(VALUE([1]!Таблица1[[#This Row],[Код КМ]]),[1]ТП!D:F,3,FALSE),0) -> 3 | R14: =IFERROR(VLOOKUP([1]!Таблица1[[#This Row],[ФИО]],[1]исж!D:E,2,FALSE),0)/1000 -> 0 | S14: =IF(ROUNDUP((TODAY()-[1]!Таблица1[Дата создания подразделения])/30,0)>5,"6 и более",ROUNDUP((TODAY()-[1]!Таблица1[Дата создания подразделения])/30,0)) ->  | T14: =IF([1]!Таблица1[[#This Row],[Управление]]="1).Городское Управление",1,2) -> 1 | W14: =VLOOKUP([1]!Таблица1[[#This Row],[ВСП]],[1]Кнорм!A:M,13,FALSE) -> 1.5 | X14: =IFERROR(VLOOKUP([1]!Таблица1[[#This Row],[ФИО]],[1]дсж!E:G,3,FALSE),0) -> 3010.94 | Y14: =VLOOKUP([1]!Таблица1[[#This Row],[ВСП]],[1]Кнорм!A:H,8,FALSE) -> 1 | Z14: =VALUE(RIGHT([1]!Таблица1[[#This Row],[ВСП]],4)) -> 31 | AA14: 235 | AB14: =[1]!Таблица1[[#This Row],[ПИФ]] -> 0 | AC14: =[1]!Таблица1[[#This Row],[ФИО]]&[1]!Таблица1[[#This Row],[ВСП]] -> Тактаева Елена Сергеевна9042/0031 | AF14: =CONCATENATE(LEFT("42000000",10-LEN([1]!Таблица1[[#This Row],[Табельный номер]])),[1]!Таблица1[[#This Row],[Табельный номер]]) -> 4200508655
A15: 4290420032402 | B15: Лаврентьева Елена Станиславовна | C15: 4200850809 | D15: 28100 | E15: =VLOOKUP([1]!Таблица1[[#This Row],[ФИО]],'[1]1.25'!A:I,5,FALSE) -> 2013-01-01 | F15: 120 | G15: 9042/0032 | H15: 042_9042_032 | I15: 1).Городское Управление | J15: =VLOOKUP([1]!Таблица1[[#This Row],[ФИО]],'[1]1.25'!A:I,4,FALSE) -> Нижний Новгород пр октября д 3 | L15: да | M15: =[1]!Таблица1[[#This Row],[Кнорм]] -> 1.5 | N15: 44 | O15: =VLOOKUP((VALUE([1]!Таблица1[[#This Row],[Код КМ]])),[1]отчет2!I:J,2,FALSE)/1000000 -> 10.537094 | P15: =IFERROR(VLOOKUP([1]!Таблица1[[#This Row],[ФИО]],[1]ПИФ!L:N,3,FALSE),0)/1000 -> 10 | Q15: =IFERROR(VLOOKUP(VALUE([1]!Таблица1[[#This Row],[Код КМ]]),[1]ТП!D:F,3,FALSE),0) -> 2 | R15: =IFERROR(VLOOKUP([1]!Таблица1[[#This Row],[ФИО]],[1]исж!D:E,2,FALSE),0)/1000 -> 0 | S15: =IF(ROUNDUP((TODAY()-[1]!Таблица1[Дата создания подразделения])/30,0)>5,"6 и более",ROUNDUP((TODAY()-[1]!Таблица1[Дата создания подразделения])/30,0)) ->  | T15: =IF([1]!Таблица1[[#This Row],[Управление]]="1).Городское Управление",1,2) -> 1 | V15: 1 | W15: =VLOOKUP([1]!Таблица1[[#This Row],[ВСП]],[1]Кнорм!A:M,13,FALSE) -> 1.5 | X15: =IFERROR(VLOOKUP([1]!Таблица1[[#This Row],[ФИО]],[1]дсж!E:G,3,FALSE),0) -> 0 | Y15: =VLOOKUP([1]!Таблица1[[#This Row],[ВСП]],[1]Кнорм!A:H,8,FALSE) -> 1 | Z15: =VALUE(RIGHT([1]!Таблица1[[#This Row],[ВСП]],4)) -> 32 | AA15: 30 | AB15: =[1]!Таблица1[[#This Row],[ПИФ]] -> 10 | AC15: =[1]!Таблица1[[#This Row],[ФИО]]&[1]!Таблица1[[#This Row],[ВСП]] -> Лаврентьева Елена Станиславовна9042/0032 | AF15: =CONCATENATE(LEFT("42000000",10-LEN([1]!Таблица1[[#This Row],[Табельный номер]])),[1]!Таблица1[[#This Row],[Табельный номер]]) -> 4200850809
A16: 4290420032401 | B16: Юнгина Екатерина Олеговна | C16: 4201117309 | D16: 23000 | E16: =VLOOKUP([1]!Таблица1[[#This Row],[ФИО]],'[1]1.25'!A:I,5,FALSE) -> 2012-01-01 | F16: 39 | G16: 9042/0032 | H16: 042_9042_032 | I16: 1).Городское Управление | J16: =VLOOKUP([1]!Таблица1[[#This Row],[ФИО]],'[1]1.25'!A:I,4,FALSE) -> Нижний Новгород пр октября д 3 | L16: да | M16: =[1]!Таблица1[[#This Row],[Кнорм]] -> 1.5 | N16: 36 | O16: =VLOOKUP((VALUE([1]!Таблица1[[#This Row],[Код КМ]])),[1]отчет2!I:J,2,FALSE)/1000000 -> -14.61925 | P16: =IFERROR(VLOOKUP([1]!Таблица1[[#This Row],[ФИО]],[1]ПИФ!L:N,3,FALSE),0)/1000 -> 0 | Q16: =IFERROR(VLOOKUP(VALUE([1]!Таблица1[[#This Row],[Код КМ]]),[1]ТП!D:F,3,FALSE),0) -> 0 | R16: =IFERROR(VLOOKUP([1]!Таблица1[[#This Row],[ФИО]],[1]исж!D:E,2,FALSE),0)/1000 -> 0 | S16: =IF(ROUNDUP((TODAY()-[1]!Таблица1[Дата создания подразделения])/30,0)>5,"6 и более",ROUNDUP((TODAY()-[1]!Таблица1[Дата создания подразделения])/30,0)) ->  | T16: =IF([1]!Таблица1[[#This Row],[Управление]]="1).Городское Управление",1,2) -> 1 | W16: =VLOOKUP([1]!Таблица1[[#This Row],[ВСП]],[1]Кнорм!A:M,13,FALSE) -> 1.5 | X16: =IFERROR(VLOOKUP([1]!Таблица1[[#This Row],[ФИО]],[1]дсж!E:G,3,FALSE),0) -> 0 | Y16: =VLOOKUP([1]!Таблица1[[#This Row],[ВСП]],[1]Кнорм!A:H,8,FALSE) -> 1 | Z16: =VALUE(RIGHT([1]!Таблица1[[#This Row],[ВСП]],4)) -> 32 | AA16: 0 | AB16: =[1]!Таблица1[[#This Row],[ПИФ]] -> 0 | AC16: =[1]!Таблица1[[#This Row],[ФИО]]&[1]!Таблица1[[#This Row],[ВСП]] -> Юнгина Екатерина Олеговна9042/0032 | AF16: =CONCATENATE(LEFT("42000000",10-LEN([1]!Таблица1[[#This Row],[Табельный номер]])),[1]!Таблица1[[#This Row],[Табельный номер]]) -> 4201117309
